[Event "Klubbmästerskap 2025 Tisdag"]
[Site "Linköping, Sweden"]
[Date "2025.02.25"]
[Round "5.1"]
[White "Nyberg, Peter"]
[Black "Rogoz, Vladyslav"]
[Result "1-0"]
[TimeControl "90 min + 30 sec/move"]
[WhiteElo "1972"]
[BlackElo "2099"]

1. c4 {[%clk 01:30:57]} {[%emt 00:00:02]} e5 {[%clk 01:22:01]} {[%emt
00:09:00]} 2. Nc3 {[%clk 01:31:06]} {[%emt 00:00:20]} d6 {[%clk 01:22:15]}
{[%emt 00:00:16]} 3. g3 {[%clk 01:31:10]} {[%emt 00:00:26]} f5 {[%clk
01:22:36]} {[%emt 00:00:09]} 4. Bg2 {[%clk 01:31:13]} {[%emt 00:00:27]} Nf6
{[%clk 01:22:41]} {[%emt 00:00:26]} 5. d3 {[%clk 01:31:12]} {[%emt 00:00:31]}
Be7 {[%clk 01:22:52]} {[%emt 00:00:19]} 6. e4 {[%clk 01:29:24]} {[%emt
00:02:18]} O-O {[%clk 01:22:34]} {[%emt 00:00:48]} 7. Nge2 {[%clk 01:28:47]}
{[%emt 00:01:07]} Nc6 {[%clk 01:21:50]} {[%emt 00:01:14]} 8. Nd5 {[%clk
01:29:03]} {[%emt 00:00:15]} fxe4 {[%clk 01:19:24]} {[%emt 00:02:56]} 9. dxe4
{[%clk 01:29:17]} {[%emt 00:00:16]} Bg4 {[%clk 01:19:33]} {[%emt 00:00:20]} 10.
f3 {[%clk 01:29:27]} {[%emt 00:00:21]} Be6 {[%clk 01:18:59]} {[%emt 00:01:04]}
11. O-O {[%clk 01:28:37]} {[%emt 00:01:19]} a5 {[%clk 01:11:25]} {[%emt
00:08:05]} 12. Be3 {[%clk 01:25:36]} {[%emt 00:03:31]} Qd7 {[%clk 01:09:30]}
{[%emt 00:02:25]} 13. Qd2 {[%clk 01:24:17]} {[%emt 00:01:49]} Bd8 {[%clk
01:09:22]} {[%emt 00:00:38]} 14. b3 {[%clk 01:20:34]} {[%emt 00:04:13]} Bh3
{[%clk 01:08:14]} {[%emt 00:01:38]} 15. Rf2 {[%clk 01:17:31]} {[%emt 00:03:33]}
Bxg2 {[%clk 01:08:26]} {[%emt 00:00:18]} 16. Kxg2 {[%clk 01:17:42]} {[%emt
00:00:19]} Qf7 {[%clk 01:07:35]} {[%emt 00:01:20]} 17. Raf1 {[%clk 01:14:24]}
{[%emt 00:03:48]} Qg6 {[%clk 01:05:21]} {[%emt 00:02:43]} 18. Nec3 {[%clk
00:50:31]} {[%emt 00:24:24]} Rf7 {[%clk 01:01:04]} {[%emt 00:04:47]} 19. Kh1
{[%clk 00:47:02]} {[%emt 00:03:59]} Nb8 {[%clk 00:52:23]} {[%emt 00:09:11]} 20.
Nxf6+ {[%clk 00:31:26]} {[%emt 00:16:06]} Bxf6 {[%clk 00:52:36]} {[%emt
00:00:17]} 21. Nd5 {[%clk 00:19:00]} {[%emt 00:12:56]} Nc6 {[%clk 00:52:11]}
{[%emt 00:00:54]} 22. Qd3 {[%clk 00:08:39]} {[%emt 00:10:51]} Re8 {[%clk
00:51:23]} {[%emt 00:01:18]} 23. c5 {[%clk 00:06:59]} {[%emt 00:02:12]} dxc5
{[%clk 00:50:17]} {[%emt 00:01:36]} 24. Bxc5 {[%clk 00:07:16]} {[%emt
00:00:12]} b6 {[%clk 00:47:24]} {[%emt 00:03:23]} 25. Be3 {[%clk 00:06:46]}
{[%emt 00:01:00]} Rd8 {[%clk 00:46:50]} {[%emt 00:01:04]} 26. Qc4 {[%clk
00:05:20]} {[%emt 00:01:56]} Nd4 {[%clk 00:45:45]} {[%emt 00:01:34]} 27. Bxd4
{[%clk 00:04:39]} {[%emt 00:01:13]} exd4 {[%clk 00:45:58]} {[%emt 00:00:16]} 28.
e5 {[%clk 00:04:51]} {[%emt 00:00:18]} b5 {[%clk 00:46:17]} {[%emt 00:00:11]}
29. Nxf6+ {[%clk 00:03:22]} {[%emt 00:01:59]} gxf6 {[%clk 00:44:50]} {[%emt
00:01:57]} 30. Qxb5 {[%clk 00:03:34]} {[%emt 00:00:18]} Qf5 {[%clk 00:44:44]}
{[%emt 00:00:36]} 31. Re1 {[%clk 00:03:06]} {[%emt 00:00:58]} d3 {[%clk
00:44:38]} {[%emt 00:00:36]} 32. Qxa5 {[%clk 00:01:59]} {[%emt 00:01:37]} Rfd7
{[%clk 00:43:13]} {[%emt 00:01:54]} 33. f4 {[%clk 00:02:06]} {[%emt 00:00:24]}
d2 {[%clk 00:43:32]} {[%emt 00:00:11]} 34. Rd1 {[%clk 00:01:35]} {[%emt
00:01:01]} Qe4+ {[%clk 00:43:03]} {[%emt 00:00:59]} 35. Kg1 {[%clk 00:01:53]}
{[%emt 00:00:12]} Rd5 {[%clk 00:40:01]} {[%emt 00:03:32]} 36. Qc3 {[%clk
00:01:29]} {[%emt 00:00:54]} fxe5 {[%clk 00:38:20]} {[%emt 00:02:12]} 37. fxe5
{[%clk 00:01:15]} {[%emt 00:00:43]} c5 {[%clk 00:35:56]} {[%emt 00:02:54]} 38.
Qf3 {[%clk 00:00:36]} {[%emt 00:01:09]} Qe1+ {[%clk 00:36:08]} {[%emt
00:00:18]} 39. Rf1 {[%clk 00:00:52]} {[%emt 00:00:14]} Qxe5 {[%clk 00:35:22]}
{[%emt 00:01:17]} 40. Qf7+ {[%clk 00:00:41]} {[%emt 00:00:42]} Kh8 {[%clk
00:35:45]} {[%emt 00:00:07]} 41. Qf6+ {[%clk 00:00:43]} {[%emt 00:00:29]} Qxf6
{[%clk 00:36:08]} {[%emt 00:00:06]} 42. Rxf6 {[%clk 00:01:08]} {[%emt
00:00:05]} Ra8 {[%clk 00:36:34]} {[%emt 00:00:04]} 43. a4 {[%clk 00:00:52]}
{[%emt 00:00:46]} Re8 {[%clk 00:36:16]} {[%emt 00:00:48]} 44. Kf2 {[%clk
00:00:53]} {[%emt 00:00:29]} Kg7 {[%clk 00:35:40]} {[%emt 00:01:06]} 45. Rf3
{[%clk 00:01:00]} {[%emt 00:00:23]} Rh5 {[%clk 00:34:15]} {[%emt 00:01:55]} 46.
h4 {[%clk 00:01:09]} {[%emt 00:00:21]} Rd5 {[%clk 00:34:40]} {[%emt 00:00:04]}
47. Re3 {[%clk 00:01:14]} {[%emt 00:00:25]} Red8 {[%clk 00:34:40]} {[%emt
00:00:29]} 48. Ke2 {[%clk 00:00:35]} {[%emt 00:01:10]} Kg6 {[%clk 00:35:01]}
{[%emt 00:00:09]} 49. a5 {[%clk 00:00:42]} {[%emt 00:00:23]} Kh5 {[%clk
00:34:53]} {[%emt 00:00:37]} 50. a6 {[%clk 00:00:55]} {[%emt 00:00:19]} Kg4
{[%clk 00:35:17]} {[%emt 00:00:06]} 51. a7 {[%clk 00:00:46]} {[%emt 00:00:39]}
R5d7 {[%clk 00:35:40]} {[%emt 00:00:07]} 52. a8=Q {[%clk 00:00:51]} {[%emt
00:00:25]} Rxa8 {[%clk 00:35:58]} {[%emt 00:00:12]} 53. Rxd2 {[%clk 00:01:11]}
{[%emt 00:00:10]} Rxd2+ {[%clk 00:35:02]} {[%emt 00:01:26]} 54. Kxd2 {[%clk
00:01:40]} {[%emt 00:00:01]} h5 {[%clk 00:34:23]} {[%emt 00:01:09]} 55. Kc3
{[%clk 00:01:53]} {[%emt 00:00:17]} Ra1 {[%clk 00:33:36]} {[%emt 00:01:17]} 56.
Kc4 {[%clk 00:01:02]} {[%emt 00:01:21]} Rc1+ {[%clk 00:34:01]} {[%emt
00:00:05]} 57. Kb5 {[%clk 00:01:15]} {[%emt 00:00:17]} Rc2 {[%clk 00:34:15]}
{[%emt 00:00:16]} 58. Re5 {[%clk 00:01:00]} {[%emt 00:00:44]} Rc3 {[%clk
00:34:35]} {[%emt 00:00:10]} 59. Rg5+ {[%clk 00:00:53]} {[%emt 00:00:37]} Kh3
{[%clk 00:34:56]} {[%emt 00:00:09]} 60. Ka4 {[%clk 00:00:46]} {[%emt 00:00:37]}
Rxg3 {[%clk 00:34:41]} {[%emt 00:00:45]} 61. Rxc5 {[%clk 00:00:40]} {[%emt
00:00:36]} Kxh4 {[%clk 00:34:47]} {[%emt 00:00:24]} 62. b4 {[%clk 00:00:46]}
{[%emt 00:00:25]} Rg1 {[%clk 00:34:36]} {[%emt 00:00:40]} 63. b5 {[%clk
00:00:45]} {[%emt 00:00:31]} Ra1+ {[%clk 00:34:54]} {[%emt 00:00:12]} 64. Kb4
{[%clk 00:01:05]} {[%emt 00:00:11]} Kg4 {[%clk 00:35:17]} {[%emt 00:00:07]} 65.
b6 {[%clk 00:00:39]} {[%emt 00:00:57]} Rb1+ {[%clk 00:35:42]} {[%emt 00:00:04]}
66. Ka5 {[%clk 00:00:58]} {[%emt 00:00:11]} Ra1+ {[%clk 00:34:35]} {[%emt
00:01:36]} 67. Kb5 {[%clk 00:01:17]} {[%emt 00:00:12]} h4 {[%clk 00:35:00]}
{[%emt 00:00:05]} 68. Rc4+ {[%clk 00:01:29]} {[%emt 00:00:18]} Kg3 {[%clk
00:33:44]} {[%emt 00:01:46]} 69. b7 {[%clk 00:01:49]} {[%emt 00:00:11]} Rb1+
{[%clk 00:34:09]} {[%emt 00:00:04]} 70. Rb4 {[%clk 00:02:13]} {[%emt 00:00:05]}
Rxb4+ {[%clk 00:34:34]} {[%emt 00:00:05]} 71. Kxb4 {[%clk 00:02:41]} {[%emt
00:00:03]} h3 {[%clk 00:34:51]} {[%emt 00:00:14]} 72. b8=Q+ {[%clk 00:02:57]}
{[%emt 00:00:14]} Kg2 {[%clk 00:35:15]} {[%emt 00:00:04]} 73. Qb7+ {[%clk
00:02:46]} {[%emt 00:00:41]} Kg1 {[%clk 00:35:38]} {[%emt 00:00:07]} 74. Qg7+
{[%clk 00:03:01]} {[%emt 00:00:15]} Kh1 {[%clk 00:35:57]} {[%emt 00:00:11]} 75.
Qa1+ {[%clk 00:03:19]} {[%emt 00:00:12]} Kg2 {[%clk 00:36:22]} {[%emt
00:00:06]} 76. Qb2+ {[%clk 00:03:42]} {[%emt 00:00:08]} Kh1 {[%clk 00:36:47]}
{[%emt 00:00:04]} 77. Qc1+ {[%clk 00:04:05]} {[%emt 00:00:07]} Kg2 {[%clk
00:37:13]} {[%emt 00:00:04]} 78. Qd2+ {[%clk 00:04:29]} {[%emt 00:00:06]} Kh1
{[%clk 00:37:38]} {[%emt 00:00:05]} 79. Qf2 {[%clk 00:03:49]} {[%emt 00:01:10]}
1-0

[Event "Klubbmästerskap 2025 Tisdag"]
[Site "Linköping, Sweden"]
[Date "2025.02.25"]
[Round "5.2"]
[White "Andersson, Mats 1960"]
[Black "Olsson, Simon"]
[Result "1/2-1/2"]
[TimeControl "90 min + 30 sec/move"]
[WhiteTitle "FM"]
[WhiteElo "2263"]
[BlackElo "2075"]

1. d4 {[%clk 01:30:54]} {[%emt 00:00:06]} Nf6 {[%clk 01:30:59]} {[%emt
00:00:02]} 2. Nf3 {[%clk 01:31:10]} {[%emt 00:00:14]} d5 {[%clk 01:31:16]}
{[%emt 00:00:14]} 3. Bf4 {[%clk 01:31:03]} {[%emt 00:00:36]} c5 {[%clk
01:30:43]} {[%emt 00:01:02]} 4. e3 {[%clk 01:29:50]} {[%emt 00:01:43]} Nc6
{[%clk 01:30:51]} {[%emt 00:00:23]} 5. c3 {[%clk 01:28:08]} {[%emt 00:02:12]}
Qb6 {[%clk 01:30:14]} {[%emt 00:01:08]} 6. b3 {[%clk 01:21:08]} {[%emt
00:07:30]} Bg4 {[%clk 01:20:21]} {[%emt 00:10:22]} 7. Be2 {[%clk 01:19:44]}
{[%emt 00:01:52]} e6 {[%clk 01:18:14]} {[%emt 00:02:38]} 8. h3 {[%clk
01:19:15]} {[%emt 00:00:59]} Bh5 {[%clk 01:15:34]} {[%emt 00:03:11]} 9. O-O
{[%clk 01:18:29]} {[%emt 00:01:16]} Be7 {[%clk 01:15:08]} {[%emt 00:00:56]} 10.
Ne5 {[%clk 00:51:45]} {[%emt 00:27:12]} Bxe2 {[%clk 01:11:15]} {[%emt
00:04:24]} 11. Qxe2 {[%clk 00:52:03]} {[%emt 00:00:11]} Rc8 {[%clk 01:10:25]}
{[%emt 00:01:21]} 12. Qb2 {[%clk 00:50:29]} {[%emt 00:02:04]} O-O {[%clk
01:04:45]} {[%emt 00:06:10]} 13. Nd2 {[%clk 00:49:39]} {[%emt 00:01:19]} cxd4
{[%clk 01:03:07]} {[%emt 00:02:09]} 14. exd4 {[%clk 00:49:27]} {[%emt
00:00:41]} Nxe5 {[%clk 01:01:48]} {[%emt 00:01:49]} 15. Bxe5 {[%clk 00:48:33]}
{[%emt 00:01:23]} Qa5 {[%clk 01:01:45]} {[%emt 00:00:34]} 16. b4 {[%clk
00:40:01]} {[%emt 00:09:01]} Qb5 {[%clk 01:01:18]} {[%emt 00:00:59]} 17. Bxf6
{[%clk 00:38:06]} {[%emt 00:02:25]} Bxf6 {[%clk 01:00:25]} {[%emt 00:01:23]} 18.
Nf3 {[%clk 00:35:15]} {[%emt 00:03:20]} Rc7 {[%clk 00:56:11]} {[%emt 00:04:44]}
19. Rfe1 {[%clk 00:29:42]} {[%emt 00:06:01]} Rfc8 {[%clk 00:43:44]} {[%emt
00:13:00]} 20. a4 {[%clk 00:28:05]} {[%emt 00:02:07]} Qd7 {[%clk 00:37:18]}
{[%emt 00:06:56]} 21. Re3 {[%clk 00:28:19]} {[%emt 00:00:14]} Rc6 {[%clk
00:34:32]} {[%emt 00:03:18]} 22. g3 {[%clk 00:27:35]} {[%emt 00:01:14]} h6
{[%clk 00:30:28]} {[%emt 00:04:34]} 23. Kg2 {[%clk 00:27:50]} {[%emt 00:00:14]}
Qc7 {[%clk 00:20:58]} {[%emt 00:10:01]} 24. Ra3 {[%clk 00:28:00]} {[%emt
00:00:19]} Qd6 {[%clk 00:20:09]} {[%emt 00:01:19]} 25. a5 {[%clk 00:27:35]}
{[%emt 00:00:54]} R6c7 {[%clk 00:19:32]} {[%emt 00:01:09]} 26. Qe2 {[%clk
00:26:46]} {[%emt 00:01:17]} Re7 {[%clk 00:14:36]} {[%emt 00:05:27]} 27. Ra1
{[%clk 00:24:47]} {[%emt 00:02:29]} Rec7 {[%clk 00:14:27]} {[%emt 00:00:40]} 28.
Ra3 {[%clk 00:24:55]} {[%emt 00:00:21]} Re7 {[%clk 00:14:51]} {[%emt 00:00:07]}
29. Ra1 {[%clk 00:24:55]} {[%emt 00:00:30]} Rec7 {[%clk 00:13:56]} {[%emt
00:01:25]} 30. Ra3 {[%clk 00:25:01]} {[%emt 00:00:23]} 1/2-1/2

[Event "Klubbmästerskap 2025 Tisdag"]
[Site "Linköping, Sweden"]
[Date "2025.02.25"]
[Round "5.3"]
[White "Carlsson, Ingvar"]
[Black "Thyberg, André"]
[Result "1/2-1/2"]
[TimeControl "90 min + 30 sec/move"]
[WhiteElo "1996"]
[BlackElo "1961"]

1. e4 {[%clk 01:30:54]} {[%emt 00:00:04]} e5 {[%clk 01:28:54]} {[%emt
00:02:07]} 2. Nf3 {[%clk 01:31:13]} {[%emt 00:00:11]} Nf6 {[%clk 01:29:01]}
{[%emt 00:00:24]} 3. Nxe5 {[%clk 01:31:04]} {[%emt 00:00:39]} d5 {[%clk
01:29:10]} {[%emt 00:00:22]} 4. exd5 {[%clk 01:30:50]} {[%emt 00:00:44]} Qxd5
{[%clk 01:29:32]} {[%emt 00:00:08]} 5. Qe2 {[%clk 01:29:50]} {[%emt 00:01:30]}
Be7 {[%clk 01:29:37]} {[%emt 00:00:25]} 6. Nc3 {[%clk 01:29:49]} {[%emt
00:00:31]} Qd8 {[%clk 01:29:30]} {[%emt 00:00:38]} 7. d4 {[%clk 01:07:10]}
{[%emt 00:23:09]} Qxd4 {[%clk 01:26:40]} {[%emt 00:03:20]} 8. Bd2 {[%clk
00:48:05]} {[%emt 00:19:34]} O-O {[%clk 01:18:24]} {[%emt 00:08:47]} 9. O-O-O
{[%clk 00:45:55]} {[%emt 00:02:40]} Bd6 {[%clk 01:13:08]} {[%emt 00:05:47]} 10.
Nf3 {[%clk 00:42:01]} {[%emt 00:04:23]} Qg4 {[%clk 01:12:28]} {[%emt 00:01:10]}
11. h3 {[%clk 00:41:40]} {[%emt 00:00:52]} Qe6 {[%clk 01:11:13]} {[%emt
00:01:45]} 12. Qxe6 {[%clk 00:35:21]} {[%emt 00:06:49]} Bxe6 {[%clk 01:11:24]}
{[%emt 00:00:19]} 13. Ng5 {[%clk 00:34:46]} {[%emt 00:01:05]} Bd7 {[%clk
01:04:38]} {[%emt 00:07:17]} 14. Nge4 {[%clk 00:30:58]} {[%emt 00:04:18]} Nxe4
{[%clk 01:01:42]} {[%emt 00:03:26]} 15. Nxe4 {[%clk 00:31:19]} {[%emt
00:00:08]} Be5 {[%clk 01:01:29]} {[%emt 00:00:43]} 16. Be3 {[%clk 00:24:48]}
{[%emt 00:07:00]} Bc6 {[%clk 00:59:46]} {[%emt 00:02:15]} 17. Nc5 {[%clk
00:23:22]} {[%emt 00:01:56]} b6 {[%clk 00:58:31]} {[%emt 00:01:45]} 18. Nb3
{[%clk 00:19:37]} {[%emt 00:04:14]} Bb7 {[%clk 00:52:28]} {[%emt 00:06:33]} 19.
f3 {[%clk 00:15:40]} {[%emt 00:04:27]} a5 {[%clk 00:50:30]} {[%emt 00:02:28]}
20. a3 {[%clk 00:11:25]} {[%emt 00:04:45]} Nc6 {[%clk 00:44:56]} {[%emt
00:06:05]} 21. Bc4 {[%clk 00:10:11]} {[%emt 00:01:43]} Rfe8 {[%clk 00:37:00]}
{[%emt 00:08:26]} 22. Nd4 {[%clk 00:09:01]} {[%emt 00:01:40]} Nxd4 {[%clk
00:28:02]} {[%emt 00:09:29]} 23. Bxd4 {[%clk 00:09:20]} {[%emt 00:00:11]} Bg3
{[%clk 00:27:32]} {[%emt 00:01:00]} 24. Bc3 {[%clk 00:09:12]} {[%emt 00:00:37]}
Bc6 {[%clk 00:26:03]} {[%emt 00:01:59]} 25. Be1 {[%clk 00:08:02]} {[%emt
00:01:39]} Bf4+ {[%clk 00:21:34]} {[%emt 00:05:00]} 26. Bd2 {[%clk 00:08:22]}
{[%emt 00:00:09]} Bd6 {[%clk 00:20:38]} {[%emt 00:01:27]} 27. Rhe1 {[%clk
00:08:15]} {[%emt 00:00:36]} Kf8 {[%clk 00:20:09]} {[%emt 00:01:00]} 28. Rxe8+
{[%clk 00:08:29]} {[%emt 00:00:16]} Rxe8 {[%clk 00:20:29]} {[%emt 00:00:10]} 29.
Re1 {[%clk 00:08:42]} {[%emt 00:00:17]} Bg3 {[%clk 00:20:05]} {[%emt 00:00:54]}
30. Rxe8+ {[%clk 00:09:04]} {[%emt 00:00:09]} Kxe8 {[%clk 00:20:25]} {[%emt
00:00:11]} 31. Kd1 {[%clk 00:08:31]} {[%emt 00:01:02]} Ke7 {[%clk 00:20:11]}
{[%emt 00:00:44]} 1/2-1/2

[Event "Klubbmästerskap 2025 Tisdag"]
[Site "Linköping, Sweden"]
[Date "2025.02.25"]
[Round "5.4"]
[White "Malm, Simon 1995"]
[Black "Pavlic, Oliver"]
[Result "1-0"]
[TimeControl "90 min + 30 sec/move"]
[WhiteElo "1976"]
[BlackElo "1950"]

1. d4 {[%clk 01:30:48]} {[%emt 00:00:12]} d5 {[%clk 01:30:53]} {[%emt
00:00:07]} 2. c4 {[%clk 01:31:06]} {[%emt 00:00:13]} c6 {[%clk 01:31:20]}
{[%emt 00:00:02]} 3. Nc3 {[%clk 01:30:58]} {[%emt 00:00:38]} Nf6 {[%clk
01:31:41]} {[%emt 00:00:10]} 4. e3 {[%clk 01:31:01]} {[%emt 00:00:27]} e6
{[%clk 01:31:56]} {[%emt 00:00:14]} 5. Nf3 {[%clk 01:31:20]} {[%emt 00:00:11]}
Nbd7 {[%clk 01:32:18]} {[%emt 00:00:09]} 6. Be2 {[%clk 01:31:35]} {[%emt
00:00:15]} b6 {[%clk 01:32:35]} {[%emt 00:00:12]} 7. O-O {[%clk 01:31:25]}
{[%emt 00:00:40]} Bb7 {[%clk 01:32:46]} {[%emt 00:00:20]} 8. b3 {[%clk
01:30:21]} {[%emt 00:01:34]} Bd6 {[%clk 01:32:37]} {[%emt 00:00:38]} 9. Bb2
{[%clk 01:29:44]} {[%emt 00:01:06]} O-O {[%clk 01:32:54]} {[%emt 00:00:14]} 10.
Bd3 {[%clk 01:28:01]} {[%emt 00:02:13]} c5 {[%clk 01:28:12]} {[%emt 00:05:12]}
11. cxd5 {[%clk 01:22:47]} {[%emt 00:05:44]} exd5 {[%clk 01:28:22]} {[%emt
00:00:20]} 12. Rc1 {[%clk 01:22:00]} {[%emt 00:01:17]} Re8 {[%clk 01:28:04]}
{[%emt 00:00:47]} 13. Ne2 {[%clk 00:59:28]} {[%emt 00:23:03]} Ne4 {[%clk
01:26:24]} {[%emt 00:02:10]} 14. dxc5 {[%clk 00:58:19]} {[%emt 00:01:39]} bxc5
{[%clk 01:24:36]} {[%emt 00:02:18]} 15. Re1 {[%clk 00:54:43]} {[%emt 00:04:05]}
Ndf6 {[%clk 01:17:55]} {[%emt 00:07:11]} 16. Ng3 {[%clk 00:52:24]} {[%emt
00:02:49]} Nxg3 {[%clk 01:13:38]} {[%emt 00:04:47]} 17. hxg3 {[%clk 00:52:40]}
{[%emt 00:00:14]} Ne4 {[%clk 01:13:24]} {[%emt 00:00:44]} 18. Bxe4 {[%clk
00:50:17]} {[%emt 00:02:54]} Rxe4 {[%clk 01:11:57]} {[%emt 00:01:57]} 19. Qd3
{[%clk 00:47:10]} {[%emt 00:03:36]} Rc8 {[%clk 01:02:49]} {[%emt 00:09:38]} 20.
Red1 {[%clk 00:44:02]} {[%emt 00:03:39]} Qe7 {[%clk 01:00:05]} {[%emt
00:03:13]} 21. Nh4 {[%clk 00:39:11]} {[%emt 00:05:22]} Qe6 {[%clk 00:52:22]}
{[%emt 00:08:13]} 22. Nf3 {[%clk 00:28:02]} {[%emt 00:11:39]} Qe7 {[%clk
00:52:32]} {[%emt 00:00:19]} 23. Nd2 {[%clk 00:26:33]} {[%emt 00:01:59]} Re6
{[%clk 00:51:50]} {[%emt 00:01:12]} 24. Qf5 {[%clk 00:26:18]} {[%emt 00:00:46]}
g6 {[%clk 00:41:00]} {[%emt 00:11:20]} 25. Qd3 {[%clk 00:25:52]} {[%emt
00:00:56]} Be5 {[%clk 00:32:10]} {[%emt 00:09:20]} 26. Bxe5 {[%clk 00:25:22]}
{[%emt 00:01:01]} Rxe5 {[%clk 00:32:38]} {[%emt 00:00:02]} 27. Nf3 {[%clk
00:24:43]} {[%emt 00:01:08]} Re6 {[%clk 00:32:24]} {[%emt 00:00:44]} 28. Rd2
{[%clk 00:22:01]} {[%emt 00:03:13]} h5 {[%clk 00:31:30]} {[%emt 00:01:24]} 29.
Rdc2 {[%clk 00:21:35]} {[%emt 00:00:56]} Kg7 {[%clk 00:29:53]} {[%emt
00:02:06]} 30. b4 {[%clk 00:18:39]} {[%emt 00:03:27]} c4 {[%clk 00:27:41]}
{[%emt 00:02:42]} 31. Qd4+ {[%clk 00:13:46]} {[%emt 00:05:23]} Kg8 {[%clk
00:27:47]} {[%emt 00:00:23]} 32. b5 {[%clk 00:13:11]} {[%emt 00:01:06]} a6
{[%clk 00:18:17]} {[%emt 00:10:00]} 33. a4 {[%clk 00:12:26]} {[%emt 00:01:15]}
axb5 {[%clk 00:17:58]} {[%emt 00:00:49]} 34. axb5 {[%clk 00:12:54]} {[%emt
00:00:02]} Ra8 {[%clk 00:18:03]} {[%emt 00:00:25]} 35. Ra1 {[%clk 00:12:24]}
{[%emt 00:01:00]} Rxa1+ {[%clk 00:17:34]} {[%emt 00:00:59]} 36. Qxa1 {[%clk
00:12:52]} {[%emt 00:00:02]} Qe8 {[%clk 00:13:07]} {[%emt 00:04:57]} 37. Nd4
{[%clk 00:13:00]} {[%emt 00:00:21]} Re4 {[%clk 00:13:06]} {[%emt 00:00:31]} 38.
Qa7 {[%clk 00:12:40]} {[%emt 00:00:51]} Bc8 {[%clk 00:09:45]} {[%emt 00:03:51]}
39. Qc5 {[%clk 00:12:52]} {[%emt 00:00:17]} h4 {[%clk 00:09:02]} {[%emt
00:01:13]} 40. gxh4 {[%clk 00:12:16]} {[%emt 00:01:07]} Bf5 {[%clk 00:07:05]}
{[%emt 00:02:26]} 41. Nxf5 {[%clk 00:11:41]} {[%emt 00:01:06]} gxf5 {[%clk
00:07:33]} {[%emt 00:00:02]} 42. Qxd5 {[%clk 00:11:37]} {[%emt 00:00:34]} Qe5
{[%clk 00:05:55]} {[%emt 00:02:08]} 43. Qxe5 {[%clk 00:09:24]} {[%emt
00:02:43]} Rxe5 {[%clk 00:06:23]} {[%emt 00:00:01]} 44. b6 {[%clk 00:09:47]}
{[%emt 00:00:08]} Rb5 {[%clk 00:06:40]} {[%emt 00:00:13]} 45. Rxc4 {[%clk
00:10:11]} {[%emt 00:00:06]} Rxb6 {[%clk 00:07:07]} {[%emt 00:00:03]} 46. Rc5
{[%clk 00:10:28]} {[%emt 00:00:13]} Rf6 {[%clk 00:07:19]} {[%emt 00:00:18]} 47.
g3 {[%clk 00:10:34]} {[%emt 00:00:24]} Kg7 {[%clk 00:07:47]} {[%emt 00:00:01]}
48. Kg2 {[%clk 00:10:56]} {[%emt 00:00:07]} Kg6 {[%clk 00:08:07]} {[%emt
00:00:10]} 49. Kf3 {[%clk 00:11:17]} {[%emt 00:00:09]} Re6 {[%clk 00:08:13]}
{[%emt 00:00:24]} 50. Rc4 {[%clk 00:11:19]} {[%emt 00:00:28]} f6 {[%clk
00:08:24]} {[%emt 00:00:19]} 51. Kf4 {[%clk 00:11:34]} {[%emt 00:00:15]} Re5
{[%clk 00:08:19]} {[%emt 00:00:36]} 52. f3 {[%clk 00:10:54]} {[%emt 00:01:10]}
Ra5 {[%clk 00:08:47]} {[%emt 00:00:01]} 53. e4 {[%clk 00:08:51]} {[%emt
00:02:33]} fxe4 {[%clk 00:09:09]} {[%emt 00:00:08]} 54. fxe4 {[%clk 00:08:26]}
{[%emt 00:00:56]} Ra1 {[%clk 00:09:03]} {[%emt 00:00:36]} 55. Rc6 {[%clk
00:08:06]} {[%emt 00:00:49]} Ra5 {[%clk 00:08:44]} {[%emt 00:00:49]} 56. g4
{[%clk 00:08:26]} {[%emt 00:00:10]} Kg7 {[%clk 00:08:48]} {[%emt 00:00:27]} 57.
g5 {[%clk 00:07:51]} {[%emt 00:01:05]} fxg5+ {[%clk 00:09:07]} {[%emt
00:00:10]} 58. hxg5 {[%clk 00:08:20]} {[%emt 00:00:02]} Ra1 {[%clk 00:09:16]}
{[%emt 00:00:21]} 59. Rc3 {[%clk 00:01:55]} {[%emt 00:06:55]} Kf7 {[%clk
00:09:15]} {[%emt 00:00:30]} 60. e5 {[%clk 00:01:42]} {[%emt 00:00:43]} Rf1+
{[%clk 00:09:28]} {[%emt 00:00:17]} 61. Rf3 {[%clk 00:02:02]} {[%emt 00:00:11]}
Ra1 {[%clk 00:09:26]} {[%emt 00:00:32]} 62. Kf5 {[%clk 00:02:26]} {[%emt
00:00:06]} Ra5 {[%clk 00:09:40]} {[%emt 00:00:15]} 63. Rb3 {[%clk 00:02:26]}
{[%emt 00:00:30]} 1-0